bitfinex/quotes_SOLUSD_20240615
["timestamp","ask_amount","ask_price","bid_price","bid_amount"]
[1718437710384,13.3615,144.13,144.11,2.5673]
[1718437710581,8.2272,144.13,144.11,2.5673]
[1718437710779,5.66,144.12,144.11,2.5673]
[1718437712182,5.66,144.12,144.11,7.7022]
[1718437713165,5.66,144.12,144.08,5.1359]
[1718437713475,5.66,144.12,144.09,2.5677]
[1718437713476,2.5675,144.11,144.09,2.5677]
[1718437713782,5.66,144.1,144.09,2.5677]
[1718437713961,5.66,144.1,144.09,7.7033]
[1718437714154,5.66,144.1,144.08,25.6789]
[1718437714354,5.66,144.09,144.08,25.6789]
[1718437718586,5.66,144.09,144.08,7.7037]
[1718437718884,5.66,144.09,144.08,15.4077]
[1718437719476,5.66,144.09,144.08,7.7037]
[1718437720191,5.66,144.09,144.08,15.4077]
[1718437720768,5.66,144.09,144.08,25.6797]
[1718437721489,2.5673,144.12,144.08,25.6797]
[1718437721790,7.7019,144.12,144.1,2.5676]
[1718437722100,5.66,144.11,144.1,2.5676]
[1718437726084,5.66,144.11,144.1,7.7029]
[1718437727273,8.2274,144.11,144.09,7.7031]
[1718437727469,5.66,144.11,144.09,15.4065]
[1718437727696,5.66,144.11,144.1,7.7029]
[1718437728198,5.66,144.11,144.1,2.5676]
[1718437729199,5.66,144.11,144.09,15.4065]
[1718437729377,5.66,144.11,144.09,25.6774]
[1718437731175,8.2274,144.11,144.09,15.4065]
[1718437731589,8.2274,144.11,144.09,7.7031]
[1718437731786,5.66,144.1,144.03,6.0022]
[1718437732101,5.66,144.1,144.07,7.7044]
[1718437732102,2.5679,144.09,144.07,7.7044]
[1718437732304,5.66,144.08,144.07,7.7044]
[1718437732907,5.66,144.08,144.07,15.4089]
[1718437734014,5.66,144.08,144.06,7.7049]
[1718437734216,5.66,144.07,144.06,7.7049]
[1718437734710,5.66,144.07,144.06,15.41]
[1718437734909,5.66,144.07,144.06,25.6834]
[1718437744101,9.78007734,144.11,144.09,2.5677]
[1718437744407,5.66,144.1,144.09,12.8389]
[1718437744634,8.2277,144.1,144.02,16.6585]
[1718437744807,7.703,144.1,144.08,2.5679]
[1718437745207,9.77997734,144.11,144.08,23.1114]
[1718437745514,5.66,144.09,144.08,25.6794]
[1718437746340,7.21247734,144.11,144.1,7.7029]
[1718437746530,5.66,144.11,144.1,25.6764]
[1718437747038,5.66,144.11,144.1,15.4056]
[1718437747213,5.66,144.11,144.1,2.5676]
[1718437747418,8.2275,144.11,144.09,7.703]
[1718437747736,5.66,144.1,144.09,7.703]
[1718437748440,5.99336666,144.1,144.09,7.703]
[1718437749150,5.99336666,144.1,144.09,15.4065]
[1718437749628,5.99336666,144.1,144.09,2.5676]
[1718437750217,8.56096666,144.1,144.08,7.7036]
[1718437750527,0.33336666,144.1,144.09,2.5678]
[1718437750727,5.99336666,144.1,144.09,2.5678]
[1718437750919,5.99336666,144.1,144.08,25.6795]
[1718437751127,0.33336666,144.1,144.09,2.5678]
[1718437751426,5.99336666,144.1,144.09,7.7034]
[1718437751641,5.99336666,144.1,144.09,15.4069]
[1718437751846,5.99336666,144.1,144.09,25.6782]
[1718437753045,0.33336666,144.1,144.09,25.6782]
[1718437758023,0.33336666,144.1,144.08,2.5679]
[1718437758219,5.66,144.09,144.08,15.4079]
[1718437758431,5.66,144.09,144.08,7.7039]
[1718437758830,5.99336666,144.09,144.08,7.7039]
[1718437760245,5.99336666,144.09,144.08,15.4079]
[1718437760430,5.99336666,144.09,144.08,25.6799]
[1718437763668,2.5681,144.08,144.06,2.5682]
[1718437763956,5.66,144.07,144.06,2.5683]
[1718437765454,5.66,144.07,144.02,16.6585]
[1718437765455,8.2282,144.07,144.02,16.6585]
[1718437765780,0.33336666,144.06,144.04,7.706]
[1718437766053,5.66,144.05,144.04,7.706]
[1718437766250,5.66,144.05,144.03,25.6877]
[1718437766447,0.33336666,144.05,144.04,2.5687]
[1718437766649,5.99336666,144.05,144.04,2.5687]
[1718437767263,5.99336666,144.05,144.04,7.7061]
[1718437769042,5.99336666,144.05,144.04,25.6871]
[1718437770061,5.99336666,144.05,144.04,7.7061]
[1718437770260,0.33336666,144.05,144.04,7.7061]
[1718437770572,0.33336666,144.05,144.04,2.5687]
[1718437770743,0.33336666,144.05,144.03,17.9817]
[1718437770950,0.33336666,144.05,144.03,7.7063]
[1718437771432,2.90186666,144.05,144.03,2.5687]
[1718437771636,2.90186666,144.05,144.03,2.5688]
[1718437771859,0.33336666,144.05,144.03,7.7065]
[1718437772259,2.90186666,144.05,144.03,2.5688]
[1718437772958,0.33336666,144.05,143.98,15.9078]
[1718437773141,7.7069,144.03,144.0,7.7081]
[1718437773341,5.66,144.01,143.99,12.8475]
[1718437773558,2.90246666,144.02,144.0,2.5694]
[1718437773862,5.66,144.01,144.0,2.5694]
[1718437774161,5.66,144.01,144.0,15.4165]
[1718437774462,5.66,144.01,144.0,25.6942]
[1718437774860,20.0,144.05,144.02,7.7067]
[1718437775044,5.66,144.03,144.01,5.1383]
[1718437775247,5.66,144.02,144.0,2.5693]
[1718437775441,5.66,144.01,144.0,7.7082]
[1718437775644,5.66,144.01,144.0,25.6942]
[1718437775950,0.33336666,144.01,144.0,25.6942]
[1718437776147,5.99336666,144.01,144.0,25.6942]
[1718437776364,0.33336666,144.01,144.0,7.7082]
[1718437776586,5.99336666,144.01,144.0,25.6942]
[1718437777658,0.33336666,144.01,144.0,25.6942]
[1718437778569,5.99336666,144.01,143.99,5.1391]
[1718437778758,5.66,144.0,143.99,25.6958]
[1718437782267,7.7059,144.05,144.02,2.5689]
[1718437782577,5.66,144.03,144.02,25.6902]
[1718437782875,5.66,144.03,144.02,7.7069]
[1718437783245,5.93833879,144.03,144.02,7.7069]
[1718437784252,5.93833879,144.03,144.02,2.5689]
[1718437785158,5.93833879,144.03,144.02,7.707]
[1718437785365,5.93833879,144.03,144.02,15.4142]
[1718437785661,5.93833879,144.03,144.02,7.707]
[1718437787952,8.50723879,144.03,144.01,2.5692]
[1718437788278,8.50723879,144.03,143.96,20.17]
[1718437788279,5.66,144.02,144.0,7.7081]
[1718437788573,5.66,144.01,144.0,7.7081]
[1718437789157,5.66,144.01,144.0,15.4164]
[1718437789856,5.66,144.01,144.0,25.6941]
[1718437790579,2.5689,144.03,144.01,2.5692]
[1718437790780,5.66,144.02,144.01,2.5692]
[1718437791077,5.93833879,144.02,144.01,2.5692]
[1718437791456,5.93833879,144.02,144.0,7.7081]
[1718437791653,5.66,144.01,143.99,2.5695]
[1718437791852,5.66,144.0,143.99,7.7087]
[1718437792049,5.93833879,144.0,143.99,7.7087]
[1718437794282,5.93833879,144.0,143.99,15.4175]
[1718437795480,5.93833879,144.0,143.99,7.7087]
[1718437802160,5.93833879,144.0,143.99,2.5695]
[1718437802863,5.93833879,144.0,143.98,25.6968]
[1718437803079,5.66,143.99,143.98,25.697]
[1718437803571,5.93833879,143.99,143.98,25.697]
[1718437803770,5.93833879,143.99,143.98,15.4186]
[1718437803973,5.93833879,143.99,143.97,7.7096]
[1718437803974,5.93833879,143.99,143.97,23.1285]
[1718437804171,0.27833879,143.99,143.98,2.5698]
[1718437804399,11.59833879,143.99,143.98,2.5698]
[1718437804764,19.30733879,143.99,143.96,2.57]
[1718437805095,5.66,143.97,143.95,13.792]
[1718437805267,31.63483879,143.99,143.96,2.5701]
[1718437805471,5.66,143.97,143.96,2.5701]
[1718437806085,5.66,143.97,143.96,7.7104]
[1718437806586,5.66,143.97,143.95,25.7027]
[1718437806788,5.66,143.96,143.95,17.992]
[1718437806974,5.66,143.96,143.95,7.7107]
[1718437807293,5.66,143.96,143.95,15.4217]
[1718437807497,5.66,143.96,143.95,25.703]
[1718437808982,5.66,143.96,143.95,7.7107]
[1718437809304,5.66,143.96,143.94,17.9927]
[1718437809305,5.66,143.96,143.93,10.2825]
[1718437809466,25.6986,143.98,143.95,2.5703]
[1718437809669,2.5699,143.97,143.95,2.5703]
[1718437809880,5.1393,143.99,143.96,5.1402]
[1718437810089,15.4167,144.0,143.97,2.5698]
[1718437810388,5.66,143.98,143.97,2.5698]
[1718437810960,7.21727228,144.01,143.98,5.1395]
[1718437811162,5.66,143.99,143.98,7.7091]
[1718437811470,5.66,143.99,143.97,7.7098]
[1718437811666,7.21315913,144.03,143.95,0.17]
[1718437811866,5.66,144.0,143.99,15.4176]
[1718437812097,5.66,144.0,143.99,25.696]
[1718437812388,8.2295,144.0,143.97,2.5699]
[1718437812588,100.0,144.04,143.91,47.3394463]
[1718437812794,2.5693,144.01,143.98,7.7091]
[1718437813088,15.4156,144.01,143.98,2.5697]
[1718437813288,0.27833879,144.0,143.97,12.8494]
[1718437813463,5.66,143.98,143.97,25.699]
[1718437813883,5.93833879,143.98,143.97,25.699]
[1718437814293,5.93833879,143.98,143.97,7.7095]
[1718437814498,5.93833879,143.98,143.97,2.5698]
[1718437815001,5.93833879,143.98,143.97,7.7097]
[1718437815790,5.93833879,143.98,143.97,15.4196]
[1718437816169,5.93833879,143.98,143.97,25.6995]
[1718437818097,5.93833879,143.98,143.92,8.2224]
[1718437818402,5.66,143.93,143.92,7.7123]
[1718437818582,5.66,143.93,143.92,25.7083]
[1718437818777,5.93833879,143.93,143.92,25.7083]
[1718437820690,5.93833879,143.93,143.92,15.4249]
[1718437820890,5.93833879,143.93,143.92,2.5707]
[1718437821196,5.93833879,143.93,143.92,7.7124]
[1718437821897,0.27833879,143.93,143.92,7.7124]
[1718437822101,0.27833879,143.93,143.92,25.7084]
[1718437822785,5.93833879,143.93,143.92,25.7084]
[1718437823708,8.50903879,143.93,143.91,0.8494463]
[1718437823889,8.50903879,143.93,143.91,8.5624463]
[1718437823890,5.66,143.92,143.91,8.5624463]
[1718437824195,11.32,143.92,143.91,0.8494463]
[1718437824413,13.8908,143.92,143.91,0.8494463]
[1718437824603,19.0325,143.92,143.91,0.8494463]
[1718437824805,19.31083879,143.92,143.91,0.8494463]
[1718437825296,37.30683879,143.92,143.91,0.8494463]
[1718437825711,15.70343879,143.92,143.91,0.8494463]
[1718437826003,54.28683879,143.92,143.91,0.8494463]
[1718437826301,175.81853879,143.92,143.91,0.8494463]
[1718437826517,2.5715,143.89,143.86,2.5718]
[1718437826688,5.66,143.87,143.85,2.5719]
[1718437827014,5.66,143.86,143.85,7.7161]
[1718437827210,5.93833879,143.86,143.85,15.4324]
[1718437827408,5.93833879,143.86,143.85,25.7208]
[1718437828192,5.93833879,143.86,143.85,2.5719]
[1718437828577,5.93833879,143.86,143.85,2.5721]
[1718437828891,0.27833879,143.86,143.85,7.7163]
[1718437829101,5.93833879,143.86,143.85,7.7163]
[1718437829303,5.93833879,143.86,143.85,15.4326]
[1718437829492,5.93833879,143.86,143.85,25.721]
[1718437831294,2.5723,143.84,143.82,9.02144486]
[1718437831501,13.3773,143.83,143.82,9.02144486]
[1718437831703,21.0947,143.83,143.82,9.02144486]
[1718437831904,8.2324,143.83,143.82,9.02144486]
[1718437832082,8.51073879,143.83,143.82,9.02144486]
[1718437832404,31.66293879,143.83,143.82,9.02144486]
[1718437832787,51.66293879,143.83,143.82,9.02144486]
[1718437833221,2.5732,143.79,143.77,0.8494463]
[1718437833422,16.0408,143.82,143.77,0.8494463]
[1718437833423,5.66,143.78,143.77,0.8494463]
[1718437833705,0.27833879,143.78,143.77,26.5848463]
[1718437833887,5.93833879,143.78,143.77,18.8642463]
[1718437834210,5.93833879,143.78,143.77,0.8494463]
[1718437834394,0.27833879,143.78,143.77,26.5848463]
[1718437834595,5.93833879,143.78,143.77,26.5848463]
[1718437834791,0.27833879,143.78,143.77,26.5848463]
[1718437835488,0.27833879,143.78,143.77,27.2648463]
[1718437836414,0.27833879,143.78,143.77,26.5848463]
[1718437836904,0.27833879,143.78,143.77,26.7548463]
[1718437837091,0.27833879,143.78,143.77,27.2648463]
[1718437837410,0.27833879,143.78,143.77,26.5848463]
[1718437838602,5.93833879,143.78,143.77,26.5848463]
[1718437840021,0.27833879,143.78,143.77,26.5848463]
[1718437840695,5.93833879,143.78,143.77,26.5848463]
[1718437840896,0.27833879,143.78,143.77,26.5848463]
[1718437841096,0.27833879,143.78,143.77,26.9248463]
[1718437841935,0.27833879,143.78,143.77,26.5848463]
[1718437842806,5.93833879,143.78,143.77,26.5848463]
[1718437845836,0.27833879,143.78,143.77,26.5848463]
[1718437847439,5.93833879,143.78,143.77,16.2906463]
[1718437847628,5.93833879,143.78,143.77,26.5848463]
[1718437848023,5.93833879,143.78,143.77,3.4229463]
[1718437848336,5.93833879,143.78,143.77,26.5848463]
[1718437848911,5.93833879,143.78,143.77,3.4229463]
[1718437849131,8.51163879,143.78,143.77,0.8494463]
[1718437849317,19.31833879,143.78,143.77,0.8494463]
[1718437849712,27.03843879,143.78,143.77,0.8494463]
[1718437849913,19.31833879,143.78,143.77,0.8494463]
[1718437850214,13.65833879,143.78,143.77,0.8494463]
[1718437850530,19.31833879,143.78,143.77,0.8494463]
[1718437850705,8.51163879,143.78,143.77,0.8494463]
[1718437851516,13.65833879,143.78,143.77,0.8494463]
[1718437851715,13.65833879,143.78,143.77,3.4229463]
[1718437851716,0.27833879,143.78,143.77,3.4229463]
[1718437851920,5.93833879,143.78,143.77,16.2906463]
[1718437852111,5.93833879,143.78,143.77,8.5700463]
[1718437852311,5.93833879,143.78,143.77,16.2906463]
[1718437852614,5.93833879,143.78,143.77,3.4229463]
[1718437853109,5.93833879,143.78,143.77,0.8494463]
[1718437853520,8.51163879,143.78,143.77,0.8494463]
[1718437853722,13.65833879,143.78,143.77,0.8494463]
[1718437854109,21.37843879,143.78,143.77,0.8494463]
[1718437854309,13.65833879,143.78,143.77,0.8494463]
[1718437854736,31.67193879,143.78,143.77,0.8494463]
[1718437855035,8.51163879,143.78,143.77,0.8494463]
[1718437855419,5.93833879,143.78,143.77,0.8494463]
[1718437855716,0.27833879,143.78,143.77,0.8494463]
[1718437855917,5.93833879,143.78,143.77,0.8494463]
[1718437856133,0.27833879,143.78,143.77,16.2906463]
[1718437856336,0.27833879,143.78,143.77,26.5848463]
[1718437857124,5.93833879,143.78,143.77,26.5848463]
[1718437857722,0.27833879,143.78,143.77,26.5848463]
[1718437860525,0.27833879,143.78,143.77,26.9248463]
[1718437860842,0.27833879,143.78,143.77,26.5848463]
[1718437862422,5.93833879,143.78,143.77,26.5848463]
[1718437862749,0.27833879,143.78,143.77,26.5848463]
[1718437862939,0.27833879,143.78,143.77,26.9248463]
[1718437863128,0.27833879,143.78,143.77,26.5848463]
[1718437863841,0.27833879,143.78,143.77,26.7548463]
[1718437864051,0.27833879,143.78,143.77,27.2648463]
[1718437864417,0.27833879,143.78,143.77,27.0948463]
[1718437864837,0.27833879,143.78,143.77,52.9248463]
[1718437866041,0.27833879,143.78,143.77,47.2648463]
[1718437866225,0.27833879,143.78,143.77,52.9248463]
[1718437868252,3.879e-05,143.78,143.77,174.3915463]
[1718437868435,3.879e-05,143.78,143.77,168.7315463]
[1718437868642,3.879e-05,143.78,143.77,68.7315463]
[1718437868838,3.879e-05,143.78,143.77,74.3915463]
[1718437869646,3.879e-05,143.78,143.77,174.3915463]
[1718437871241,3.879e-05,143.78,143.77,168.7315463]
[1718437871429,3.879e-05,143.78,143.77,174.3915463]
[1718437871629,3.879e-05,143.78,143.77,47.2648463]
[1718437874350,3.879e-05,143.78,143.77,173.7948463]
[1718437874562,3.879e-05,143.78,143.77,188.22533334]
[1718437874867,3.879e-05,143.78,143.77,209.26833334]
[1718437875167,5.66,143.9,143.89,15.4277]
[1718437875331,15.4775,143.91,143.89,25.7128]
[1718437875530,5.66,143.9,143.89,7.714]
[1718437875834,5.66,143.9,143.88,25.7147]
[1718437876029,8.2313,143.9,143.88,2.5714]
[1718437876266,5.66,143.89,143.88,5.1431]
[1718437876439,5.66,143.89,143.83,0.17]
[1718437876637,7.7143,143.89,143.86,7.7156]
[1718437876876,0.2861431,143.88,143.87,12.8586]
[1718437877038,5.9461431,143.88,143.87,25.7173]
[1718437877669,0.2861431,143.88,143.87,25.7173]
[1718437877872,5.9461431,143.88,143.87,25.7173]
[1718437878649,5.9461431,143.88,143.86,5.1436]
[1718437878973,0.2861431,143.88,143.87,7.7152]
[1718437879172,0.2861431,143.88,143.87,15.4304]
[1718437879374,0.2861431,143.88,143.87,25.7174]
[1718437880379,5.9461431,143.88,143.87,25.7174]
[1718437881339,0.2861431,143.88,143.87,25.7174]
[1718437881878,5.9461431,143.88,143.87,7.7152]
[1718437882041,5.9461431,143.88,143.87,25.7174]
[1718437882350,0.2861431,143.88,143.87,25.7174]
[1718437882556,5.9461431,143.88,143.87,25.7174]
[1718437883548,5.9461431,143.88,143.87,2.5717]
[1718437883746,5.9461431,143.88,143.78,22.4452]
[1718437883747,2.5718,143.87,143.78,22.4452]
[1718437883946,5.66,143.85,143.84,7.7166]
[1718437884370,5.9461431,143.85,143.84,25.7227]
[1718437884753,5.9461431,143.85,143.84,7.7166]
[1718437884948,11.0905431,143.85,143.82,2.5725]
[1718437885151,5.66,143.83,143.82,2.5725]
[1718437885351,8.2325,143.83,143.81,2.5727]
[1718437885577,5.66,143.82,143.81,2.5727]
[1718437885758,5.9461431,143.82,143.81,7.7183]
[1718437885958,5.9461431,143.82,143.81,15.4368]
[1718437886468,5.9461431,143.82,143.81,7.7183]
[1718437886676,5.9461431,143.82,143.81,15.4368]
[1718437886995,5.9461431,143.82,143.81,25.7281]
[1718437887341,0.2861431,143.82,143.81,25.7281]
[1718437887638,5.9461431,143.82,143.81,25.7281]
[1718437888961,0.2861431,143.82,143.81,25.7281]
[1718437889778,0.2861431,143.82,143.81,26.2381]
[1718437889965,0.2861431,143.82,143.81,46.2381]
[1718437890169,0.2861431,143.82,143.81,46.0681]
[1718437890370,0.2861431,143.82,143.81,46.2381]
[1718437890583,0.2861431,143.82,143.81,46.0681]
[1718437892477,0.2861431,143.82,143.81,52.0681]
[1718437895092,0.2861431,143.82,143.81,88.8828]
[1718437895291,0.2861431,143.82,143.81,188.8828]
[1718437897001,4.31e-05,143.82,143.81,188.8828]
[1718437897206,21.6553,143.93,143.9,2.5711]
[1718437897376,5.66,143.91,143.9,2.5711]
[1718437897568,16.5139,143.93,143.91,2.5709]
[1718437897773,5.66,143.92,143.91,2.5709]
[1718437898337,5.66,143.92,143.9,25.7115]
[1718437898594,19.0845,143.93,143.91,2.571]
[1718437898795,2.5712,143.9,143.87,12.8585]
[1718437898976,5.66,143.89,143.88,7.7145]
[1718437899173,5.66,143.89,143.87,5.1435]
[1718437899370,25.7128,143.9,143.87,5.1435]
[1718437899371,5.66,143.88,143.87,15.4303]
[1718437899587,5.66,143.88,143.87,25.7173]
[1718437902401,7.7126,143.92,143.84,0.34]
[1718437902581,5.66,143.89,143.88,15.4293]
[1718437902908,5.66,143.89,143.88,25.7156]
[1718437905205,39.6509,143.93,143.85,0.17]
[1718437905206,19.0847,143.93,143.9,5.1423]
[1718437905413,5.66,143.91,143.9,7.7134]
[1718437905780,5.66,143.91,143.9,2.5711]
[1718437905976,5.66,143.91,143.9,7.7135]
[1718437906607,5.66,143.91,143.89,7.7139]
[1718437906799,5.66,143.9,143.89,7.7141]
[1718437907585,5.66,143.9,143.89,15.4283]
[1718437908202,5.66,143.9,143.89,25.7139]
[1718437910491,5.66,143.9,143.84,20.17]
[1718437910713,2.5711,143.91,143.89,2.5714]
[1718437910914,21.0876,143.9,143.87,7.715]
[1718437911091,10.8032,143.88,143.85,7.7161]
[1718437911299,5.66,143.86,143.85,7.7161]
[1718437911721,5.66,143.86,143.85,15.4324]
[1718437912511,16.5699,143.88,143.86,7.7156]
[1718437912831,16.5699,143.88,143.87,2.5717]
[1718437913012,22.2299,143.88,143.86,7.7155]
[1718437913345,5.66,143.87,143.86,7.7155]
[1718437913615,5.66,143.87,143.86,15.4313]
[1718437913793,5.66,143.87,143.86,25.719]
[1718437915227,5.66,143.87,143.86,2.5718]
[1718437915720,5.66,143.87,143.86,7.7156]
[1718437916019,5.66,143.87,143.86,2.5718]
[1718437917026,5.66,143.87,143.85,7.716]
[1718437917226,5.66,143.86,143.85,7.716]
[1718437917413,24.2847,143.88,143.85,7.716]
[1718437917620,5.66,143.86,143.85,25.7207]
[1718437918830,16.5699,143.88,143.87,7.7152]
[1718437919018,7.7136,143.9,143.87,7.7151]
[1718437919213,2.571,143.91,143.88,25.7149]
[1718437919421,5.66,143.89,143.88,25.715]
[1718437920434,5.66,143.89,143.88,7.7144]
[1718437920613,5.66,143.89,143.88,15.4291]
[1718437920815,5.66,143.89,143.88,7.7144]
[1718437921015,5.66,143.89,143.88,2.5715]
[1718437921315,5.66,143.89,143.88,15.4293]
[1718437921521,63.7601,143.92,143.89,7.714]
[1718437921522,38.549,143.92,143.89,7.714]
[1718437921820,5.66,143.9,143.89,15.4281]
[1718437922016,5.66,143.9,143.89,25.7137]
[1718437922910,2.5708,143.93,143.91,2.571]
[1718437923134,2.5705,143.94,143.91,5.1419]
[1718437923426,5.66,143.92,143.91,25.71]
[1718437924435,5.66,143.93,143.92,7.7124]
[1718437924603,30.9652,143.96,143.93,2.5706]
[1718437924809,15.5443,143.96,143.94,2.5704]
[1718437925028,5.66,143.95,143.94,2.5704]
[1718437925414,5.66,143.95,143.93,17.9945]
[1718437925613,5.66,143.95,143.93,7.7118]
[1718437925814,8.2303,143.95,143.93,2.5705]
[1718437926735,5.66,143.95,143.93,2.5705]
[1718437927031,5.66,143.95,143.93,7.7118]
[1718437927216,17.9904,143.97,143.86,0.17]
[1718437927217,29.31053868,144.0,143.89,15.2464]
[1718437927423,2.5699,143.98,143.95,12.8512]
[1718437927727,5.66,143.96,143.95,25.7027]
[1718437927932,5.66,143.96,143.95,7.7108]
[1718437928714,5.66,143.96,143.95,15.4218]
[1718437928928,5.66,143.96,143.95,25.7031]
[1718437930045,5.66,143.96,143.95,2.5703]
[1718437930440,7.711,143.95,143.92,7.7124]
[1718437930744,5.66,143.93,143.92,25.7085]
[1718437932110,5.66,143.93,143.92,15.4251]
[1718437932316,5.66,143.93,143.92,25.7085]
[1718437932713,5.66,143.93,143.92,2.5708]
[1718437933043,5.66,143.93,143.92,7.7125]
[1718437933361,5.66,143.93,143.92,2.5708]
[1718437933531,5.66,143.93,143.92,7.7125]
[1718437933724,5.66,143.93,143.92,15.4251]
[1718437934152,5.66,143.93,143.92,25.7085]
[1718437934539,15.42,143.97,143.94,2.5704]
[1718437934842,2.57,143.97,143.95,2.5703]
[1718437935142,5.66,143.96,143.94,7.7113]
[1718437935349,5.66,143.95,143.94,2.5703]
[1718437936633,12.8491,143.98,143.95,2.5703]
[1718437936856,5.66,143.96,143.95,2.5703]
[1718437937533,5.66,143.96,143.94,7.7113]
[1718437937723,13.3704,143.96,143.93,7.7117]
[1718437937932,5.66,143.94,143.93,2.5705]
[1718437938733,5.66,143.94,143.93,7.7118]
[1718437939238,5.66,143.94,143.93,15.4238]
[1718437939741,5.66,143.94,143.93,2.5706]
[1718437940134,257.5,144.01,143.95,2.5702]
[1718437940135,357.5,144.01,143.95,2.5702]
[1718437940347,357.5,144.01,143.92,2.5708]
[1718437940348,2.5706,143.94,143.92,2.5708]
[1718437940530,5.66,143.93,143.92,2.5708]
[1718437940858,5.66,143.93,143.91,7.7129]
[1718437941057,5.66,143.93,143.91,5.142]
[1718437941218,5.66,143.93,143.92,2.5708]
[1718437941423,5.1405,143.96,143.93,2.5705]
[1718437941654,5.66,143.94,143.93,15.4237]
[1718437942146,2.5701,143.96,143.94,2.5704]
[1718437942446,5.66,143.95,143.94,5.1408]
[1718437942620,5.66,143.95,143.94,15.4225]
[1718437943246,5.66,143.95,143.94,7.7111]
[1718437944229,8.2304,143.95,143.92,2.5707]
[1718437944524,5.66,143.93,143.92,2.5707]
[1718437944925,5.66,143.93,143.91,23.1383]
[1718437945135,25.7036,143.95,143.92,2.5708]
[1718437945335,5.66,143.93,143.92,2.5708]
[1718437945549,5.66,143.93,143.92,7.7125]
[1718437946839,5.66,143.93,143.92,25.7085]
[1718437948754,5.66,143.94,143.93,15.4239]
[1718437948948,5.66,143.94,143.93,25.706]
[1718437949927,5.66,143.94,143.93,2.5706]
[1718437950131,2.5709,143.92,143.89,7.7136]
[1718437950360,8.2312,143.9,143.88,2.5715]
[1718437950658,5.66,143.89,143.86,5.1436]
[1718437950826,5.66,143.87,143.86,12.8593]
[1718437951024,5.66,143.87,143.86,7.7155]
[1718437951230,5.66,143.87,143.86,15.4313]
[1718437951457,5.66,143.87,143.86,25.719]
[1718437952835,7.7138,143.9,143.86,25.719]
[1718437952836,7.7138,143.9,143.87,2.5717]
[1718437953061,2.5714,143.89,143.86,25.7189]
[1718437953761,7.7142,143.89,143.86,2.5718]
[1718437954057,15.4284,143.89,143.85,23.1484]
[1718437954227,2.5715,143.88,143.85,25.7203]
[1718437954433,2.5715,143.88,143.85,7.7158]
[1718437954740,18.0001,143.89,143.86,2.5719]
[1718437954946,2.5715,143.89,143.86,7.7157]
[1718437955938,2.5715,143.89,143.85,7.7159]
[1718437955939,2.5716,143.88,143.85,7.7159]
[1718437956345,2.5716,143.88,143.86,2.5719]
[1718437956565,25.7144,143.89,143.86,2.5719]
[1718437956759,2.5716,143.88,143.85,15.4322]
[1718437956947,2.5716,143.88,143.86,2.5719]
[1718437957463,2.5716,143.88,143.85,15.4322]
[1718437957964,2.5716,143.88,143.86,2.5719]
[1718437958766,2.5716,143.88,143.85,15.4322]
[1718437958969,25.7144,143.89,143.86,2.5719]
[1718437959466,2.5718,143.87,143.84,5.1444]
[1718437959639,2.5718,143.87,143.84,23.1502]
[1718437959840,2.5718,143.87,143.84,25.7223]
[1718437960167,17.06,143.88,143.86,2.5719]
[1718437960460,31.8985,143.89,143.86,2.5719]
[1718437960770,13.8986,143.89,143.86,7.7157]
[1718437961144,19.0413,143.89,143.86,2.5719]
[1718437961644,13.8986,143.89,143.86,2.5719]
[1718437961847,7.7145,143.89,143.86,2.5719]
[1718437962047,7.7145,143.89,143.86,7.7157]
[1718437962859,2.5715,143.89,143.87,2.5717]
[1718437963067,2.5715,143.89,143.86,7.7156]